bitfinex/quotes_ETHUSD_20250721
["timestamp","ask_amount","ask_price","bid_price","bid_amount"]
[1753104426304,4.118,3785.9,3785.6,3.0]
[1753104426491,4.118,3785.9,3785.5,5.64263921]
[1753104426691,4.118,3785.9,3785.6,3.0]
[1753104426898,0.47891812,3785.8,3785.5,3.001]
[1753104427205,0.132,3785.6,3785.5,0.001]
[1753104428922,0.5779,3785.6,3785.5,0.001]
[1753104429091,0.132,3785.6,3785.5,0.001]
[1753104429292,4.117,3785.6,3785.5,0.001]
[1753104429896,0.132,3785.8,3785.5,0.29793512]
[1753104430095,2.64103173,3786.4,3785.8,2.64144962]
[1753104430320,0.132,3786.2,3785.9,3.0]
[1753104430643,0.132,3786.2,3785.9,2.64137985]
[1753104430809,0.132,3786.2,3786.0,0.67331799]
[1753104431333,0.132,3786.2,3786.1,3.0]
[1753104431518,0.132,3786.2,3786.0,3.67331799]
[1753104431911,0.132,3786.2,3786.0,6.31460976]
[1753104432114,4.116,3786.6,3786.0,3.67331799]
[1753104432316,4.248,3786.6,3786.1,3.42024409]
[1753104433064,4.248,3786.6,3786.3,3.0]
[1753104433235,4.248,3786.6,3786.3,5.64109507]
[1753104433422,4.248,3786.6,3786.3,3.0]
[1753104434913,0.132,3786.6,3786.1,0.7790318]
[1753104435116,1.21410591,3787.2,3786.3,1.1466]
[1753104435317,4.248,3787.1,3786.7,3.0]
[1753104436062,0.4459,3787.0,3786.4,0.132]
[1753104436229,2.64073198,3786.9,3786.4,0.132]
[1753104436435,0.4459,3787.0,3786.4,0.132]
[1753104436648,3.08653086,3787.0,3786.4,2.77298757]
[1753104436955,3.08653086,3787.0,3786.4,0.132]
[1753104437256,3.11953851,3787.0,3786.4,0.132]
[1753104438055,2.64070097,3786.9,3786.4,0.132]
[1753104438258,3.11953954,3787.0,3786.4,0.132]
[1753104438560,3.11953954,3787.0,3786.4,2.77302747]
[1753104438758,3.11953954,3787.0,3786.4,0.132]
[1753104438915,0.47890765,3787.0,3786.4,0.132]
[1753104439120,0.4459,3787.0,3786.4,2.77302546]
[1753104439322,0.4492,3788.4,3787.6,3.0]
[1753104439555,1.1936,3788.5,3787.6,7.115]
[1753104439754,2.63989272,3788.1,3787.6,7.115]
[1753104439931,2.63978436,3788.2,3787.6,7.115]
[1753104440256,0.4492,3788.3,3787.6,7.115]
[1753104441146,0.4492,3788.3,3787.6,9.75519431]
[1753104442572,1.1845,3787.7,3785.8,1.1838]
[1753104442730,2.64040331,3787.4,3785.9,2.64137985]
[1753104442924,0.48220504,3787.3,3786.2,2.64112323]
[1753104443128,1.1825,3787.1,3786.0,0.79381799]
[1753104443328,4.59520765,3787.0,3786.3,2.64108946]
[1753104443524,0.48220765,3787.0,3786.3,2.64108946]
[1753104443729,4.113,3787.2,3786.6,3.0]
[1753104443965,1.1825,3787.3,3786.5,4.1838]
[1753104444173,4.113,3787.6,3786.9,2.64063131]
[1753104444379,1.1723,3787.7,3786.9,4.113]
[1753104444682,2.64214747,3787.7,3787.2,3.0]
[1753104445007,2.64214747,3787.7,3787.0,6.05185202]
[1753104445364,0.002,3787.7,3787.3,1.1534]
[1753104445789,0.002,3787.7,3787.3,3.79380098]
[1753104445961,0.002,3787.7,3787.3,1.1534]
[1753104446157,0.002,3787.7,3787.3,5.28521973]
[1753104446396,0.002,3787.7,3787.4,0.3441]
[1753104446571,0.002,3787.7,3787.3,4.13181973]
[1753104446770,0.4492,3787.6,3787.3,3.0]
[1753104447196,0.4492,3787.5,3787.3,3.0]
[1753104447404,2.64045558,3787.3,3786.7,1.1333]
[1753104447604,2.64045558,3787.3,3786.7,7.112]
[1753104447791,3.1225582,3787.4,3786.7,9.75281352]
[1753104448108,7.88214792,3787.6,3786.8,2.64068558]
[1753104448290,7.88214792,3787.6,3786.7,10.99937909]
[1753104448291,2.64027263,3787.5,3787.0,3.0]
[1753104448486,2.67340604,3787.4,3786.8,3.0]
[1753104448687,2.64040345,3787.3,3786.8,3.0]
[1753104448990,3.08967828,3787.2,3786.8,3.0]
[1753104449187,3.77015244,3787.6,3786.9,2.64062392]
[1753104449502,4.244,3787.5,3786.9,2.77262392]
[1753104450468,6.88428705,3787.5,3786.9,0.132]
[1753104450669,2.64041042,3787.3,3786.9,0.132]
[1753104450885,2.77232565,3787.5,3786.9,0.132]
[1753104451102,6.88432565,3787.5,3786.9,0.132]
[1753104451603,0.132,3787.5,3786.9,2.77267457]
[1753104451899,0.132,3787.5,3786.9,2.7726703]
[1753104452068,2.77228021,3787.5,3786.9,0.132]
[1753104452268,2.77228021,3787.5,3786.9,2.77267519]
[1753104452807,2.64035088,3787.4,3786.9,0.132]
[1753104453004,2.77228269,3787.5,3786.9,0.132]
[1753104453377,2.77228269,3787.5,3786.9,2.77266899]
[1753104453675,6.88328269,3787.5,3786.9,2.77266899]
[1753104453881,2.64034145,3787.4,3786.9,0.132]
[1753104454608,0.4492,3787.3,3786.9,0.132]
[1753104455395,4.243,3787.5,3786.9,2.77266829]
[1753104455971,2.64025139,3787.6,3787.0,2.64060054]
[1753104456171,6.75123311,3787.6,3787.0,2.64060054]
[1753104456408,3.12246732,3787.5,3786.7,3.0]
[1753104456625,2.64041879,3787.3,3786.9,3.0]
[1753104456917,0.4492,3787.2,3786.9,3.0]
[1753104457118,3.08967857,3787.2,3786.9,3.0]
[1753104457321,3.08974289,3787.1,3786.9,3.0]
[1753104457519,0.4492,3787.1,3786.9,3.0]
[1753104457728,3.08978384,3787.1,3786.9,3.0]
[1753104458023,0.4492,3787.1,3786.9,3.0]
[1753104458187,3.08976766,3787.1,3786.9,3.0]
[1753104458610,0.4492,3787.1,3786.9,3.0]
[1753104458887,1.19270504,3787.3,3786.7,3.0]
[1753104459230,2.64071725,3786.9,3786.2,3.77116361]
[1753104459528,3.08991725,3786.9,3786.3,7.11]
[1753104459727,3.08991725,3786.9,3786.3,9.75109664]
[1753104460081,2.64075285,3786.8,3786.3,7.11]
[1753104460287,0.03300765,3787.0,3785.9,1.33769895]
[1753104460486,1.5951,3786.7,3786.0,4.11]
[1753104460721,2.6737827,3786.8,3786.1,3.0]
[1753104460882,2.6737827,3786.8,3786.1,5.64117659]
[1753104461289,0.0330094,3786.8,3786.3,3.0]
[1753104461495,0.4492,3787.0,3786.5,2.64095486]
[1753104461702,6.75053117,3787.2,3786.5,3.88015576]
[1753104461908,1.1795,3787.3,3786.4,3.0]
[1753104462240,4.11,3787.6,3786.6,0.55]
[1753104462404,0.002,3787.7,3787.5,3.0]
[1753104462618,0.002,3787.7,3787.6,5.64019431]
[1753104463032,0.002,3787.7,3787.6,3.0]
[1753104463605,0.002,3787.7,3787.6,6.98725784]
[1753104463805,0.002,3787.7,3787.6,18.2239891]
[1753104464004,0.002,3787.7,3787.6,15.92789479]
[1753104464243,0.002,3787.7,3787.6,18.2239891]
[1753104464416,0.002,3787.7,3787.6,7.53725784]
[1753104464618,0.002,3787.7,3787.6,7.88135784]
[1753104465318,0.002,3787.7,3787.6,8.08264179]
[1753104466043,2.64033373,3787.4,3786.1,1.0975]
[1753104466204,0.132,3786.7,3786.1,1.0975]
[1753104466406,14.5,3786.6,3786.1,1.0975]
[1753104466644,17.1408926,3786.6,3786.1,1.0975]
[1753104466830,2.64097067,3786.5,3786.1,1.0975]
[1753104467138,2.6409775,3786.5,3786.1,1.0985]
[1753104467344,2.6409775,3786.5,3786.3,3.0]
[1753104467561,3.1128775,3786.5,3786.3,3.0]
[1753104467913,2.64111389,3786.3,3786.1,0.001]
[1753104468112,2.64111389,3786.3,3786.1,3.001]
[1753104468446,3.11307056,3786.2,3786.1,3.001]
[1753104468633,0.4719,3786.2,3786.1,3.001]
[1753104470063,2.64101491,3786.5,3786.1,3.001]
[1753104470356,17.14103314,3786.4,3786.1,3.001]
[1753104470658,17.61293314,3786.4,3786.1,3.001]
[1753104471421,14.9719,3786.4,3786.1,3.001]
[1753104472218,17.61293132,3786.4,3786.1,3.001]
[1753104472419,14.9719,3786.4,3786.1,3.001]
[1753104472652,17.61299186,3786.4,3786.1,3.001]
[1753104473153,2.64111214,3786.3,3786.1,3.001]
[1753104473317,3.11301214,3786.3,3786.1,3.001]
[1753104473763,0.4719,3786.3,3786.1,3.001]
[1753104474665,3.14608519,3786.2,3786.1,0.001]
[1753104475459,4.32508519,3786.2,3786.1,0.001]
[1753104475965,3.82058918,3785.6,3785.5,1e-08]
[1753104476144,3.82086832,3785.2,3784.3,0.001]
[1753104476368,2.64214753,3784.8,3784.3,0.001]
[1753104476575,6.78417437,3784.8,3784.3,0.001]
[1753104476787,7.22304753,3784.8,3784.3,0.001]
[1753104477567,16.1509,3785.2,3784.3,0.001]
[1753104477741,14.5,3785.2,3784.8,4.109]
[1753104477945,14.5,3785.2,3784.9,3.0]
[1753104478179,14.5,3785.2,3784.8,6.75108161]
[1753104478180,14.5,3785.2,3785.1,5.64193812]
[1753104478563,14.5,3785.2,3785.1,3.0]
[1753104478764,2.64139492,3785.9,3785.3,3.0]
[1753104478963,2.64131665,3786.0,3785.3,2.64173875]
[1753104479168,14.5,3785.9,3785.3,2.64173875]
[1753104479760,2.64144962,3785.8,3785.1,3.0]
[1753104480097,2.64138384,3785.9,3785.1,3.0]
[1753104480287,2.67440287,3785.9,3785.0,0.55]
[1753104480490,14.9719,3785.8,3784.7,0.001]
[1753104480665,2.6416678,3785.5,3784.9,3.0]
[1753104480868,0.03302073,3785.5,3784.9,2.64206073]
[1753104481200,0.03302073,3785.5,3784.9,2.64202044]
[1753104482199,2.67468378,3785.5,3784.9,2.64202044]
[1753104482397,2.64172914,3785.4,3784.7,3.001]
[1753104482563,0.4719,3785.5,3785.1,3.0]
[1753104482891,0.4719,3785.5,3785.0,3.0]
[1753104483196,2.64159673,3785.6,3785.0,3.0]
[1753104483694,0.03302073,3785.5,3785.0,3.0]
[1753104483894,14.5,3785.8,3784.7,0.001]
[1753104484097,4.109,3785.6,3785.1,3.0]
[1753104484322,4.109,3785.6,3785.1,2.6419373]
[1753104484497,17.14147397,3785.8,3785.1,2.6419373]
[1753104484797,4.109,3785.7,3785.1,2.6419373]
[1753104485007,6.7505245,3785.7,3785.0,5.64198676]
[1753104485206,6.7505245,3785.7,3785.1,2.64191433]
[1753104485401,2.64160073,3785.6,3785.0,3.0]
[1753104485703,6.75054322,3785.7,3785.0,5.64200746]
[1753104485911,0.132,3785.6,3785.0,5.64200746]
[1753104486263,2.77359861,3785.6,3785.0,5.64200746]
[1753104486460,2.64165896,3785.5,3785.0,3.0]
[1753104486663,2.64205368,3785.0,3784.7,0.133]
[1753104486928,0.4719,3784.9,3784.7,0.133]
[1753104487777,3.11381094,3785.2,3784.7,0.133]
[1753104488183,3.11385381,3785.1,3784.7,0.133]
[1753104488382,0.4719,3785.0,3784.7,0.133]
[1753104488608,0.4719,3784.9,3784.7,0.001]
[1753104489012,0.16502422,3785.1,3784.7,0.001]
[1753104489172,0.4719,3784.8,3784.7,0.001]
[1753104489711,3.11404753,3784.8,3784.7,0.001]
[1753104489911,0.4719,3784.8,3784.7,0.001]
[1753104490127,2.77394701,3785.1,3784.7,0.001]
[1753104490128,0.03302509,3785.0,3784.7,0.001]
[1753104490279,0.132,3785.1,3784.7,1.0694]
[1753104490484,0.132,3785.1,3784.9,3.0]
[1753104490877,0.132,3785.1,3784.7,0.7253]
[1753104491267,2.64204499,3785.0,3784.7,0.7253]
[1753104491472,3.24585989,3785.1,3784.7,0.001]
[1753104493011,2.64203426,3785.0,3784.7,0.001]
[1753104493221,0.4719,3785.0,3784.7,0.001]
[1753104493519,2.64214753,3784.8,3784.7,0.001]
[1753104493885,3.11404753,3784.8,3784.7,0.001]
[1753104495235,17.61404753,3784.8,3784.7,0.001]
[1753104495733,18.77074753,3784.8,3784.7,0.001]
[1753104496527,22.87974753,3784.8,3784.7,0.001]
[1753104501522,18.77074753,3784.8,3784.7,0.001]
[1753104501727,22.87974753,3784.8,3784.7,0.001]
[1753104502136,19.7657,3784.8,3784.7,0.001]
[1753104502298,22.84284753,3784.8,3784.7,0.001]
[1753104505539,8.34284753,3784.8,3784.7,0.001]
[1753104505930,22.84284753,3784.8,3784.7,0.001]
[1753104507774,22.84184753,3784.8,3784.7,0.001]
[1753104508317,22.84184753,3784.8,3784.7,1e-08]
[1753104511409,22.84184753,3784.8,3784.6,0.001]
[1753104511610,4.20874505,3784.7,3784.6,1e-08]
[1753104512248,18.70874505,3784.7,3784.6,1e-08]
[1753104512454,18.67571734,3784.7,3784.6,1e-08]
[1753104517477,2.6424268,3784.4,3784.3,1e-08]
[1753104517674,7.94085713,3784.4,3784.3,1e-08]
[1753104517876,8.3428268,3784.4,3784.3,1e-08]
[1753104519564,22.8428268,3784.4,3784.3,1e-08]
[1753104520046,23.3928268,3784.4,3784.3,1e-08]
[1753104520783,18.7348268,3784.4,3784.3,1e-08]
[1753104520954,22.8428268,3784.4,3784.3,1e-08]
[1753104522241,18.7348268,3784.4,3784.3,1e-08]
[1753104522693,21.2504268,3784.4,3784.3,1e-08]
[1753104523184,17.1424268,3784.4,3784.3,1e-08]
[1753104523552,4.107,3784.4,3784.3,1e-08]
[1753104524165,2.6424268,3784.4,3784.3,1e-08]
[1753104524378,6.7494268,3784.4,3784.3,1e-08]
[1753104526690,7.1947268,3784.4,3784.3,1e-08]
[1753104526891,8.3388268,3784.4,3784.3,1e-08]
[1753104528393,17.1424268,3784.4,3784.3,1e-08]
[1753104528803,0.132,3784.4,3784.3,0.34410001]
[1753104528956,0.132,3784.9,3784.8,3.0]
[1753104529182,0.132,3785.2,3784.9,1.1381]
[1753104529582,0.132,3785.2,3785.0,0.3441]
[1753104529885,2.64200792,3785.0,3784.9,1.1381]
[1753104530116,6.88000792,3785.0,3784.9,1.1381]
[1753104530286,4.238,3785.0,3784.9,1.1381]
[1753104531016,6.88000792,3785.0,3784.9,1.1381]
[1753104531578,2.64213057,3784.9,3784.7,1.1729]
[1753104531777,2.67515654,3784.9,3784.7,1.1729]
[1753104532004,4.238,3785.0,3784.7,1.1729]
[1753104532311,0.35620262,3785.1,3785.0,4.1697]
[1753104532511,0.002,3785.1,3785.0,8.42139569]
[1753104532712,0.4473,3786.7,3785.7,1.1697]
[1753104532713,0.132,3786.0,3785.7,1.1697]
[1753104533207,0.132,3786.0,3785.7,1.5118]
[1753104533780,0.132,3786.0,3785.7,1.1697]
[1753104533781,2.77332699,3786.0,3785.7,1.1697]
[1753104533978,2.64144962,3785.8,3785.7,1.1697]
[1753104534380,2.67446774,3785.8,3785.4,1.0886]
[1753104534682,2.64144962,3785.8,3785.4,1.0886]
[1753104535682,2.64144962,3785.8,3785.1,1.0886]
[1753104535683,0.132,3785.5,3785.1,1.0886]
[1753104536023,2.64177831,3785.4,3785.1,1.0886]
[1753104536220,0.03302248,3785.3,3785.1,1.0886]
[1753104536516,2.67476563,3785.4,3785.1,1.0886]
[1753104536721,2.64179853,3785.3,3784.7,1.0886]
[1753104536921,0.0330216,3785.4,3784.7,1.0886]
[1753104536922,2.77414753,3784.8,3784.7,1.0886]
[1753104537123,0.132,3784.8,3784.6,0.001]
[1753104537321,0.16502684,3784.8,3784.6,0.001]
[1753104537491,0.132,3784.8,3784.6,0.001]
[1753104537690,0.16502684,3784.8,3784.6,0.001]
[1753104538325,2.64221734,3784.7,3784.6,0.001]
[1753104538689,0.16502684,3784.8,3784.6,0.001]
[1753104538889,2.80720063,3784.8,3784.6,0.001]
[1753104539204,6.91220063,3784.8,3784.6,0.001]
[1753104539527,6.87917456,3784.8,3784.6,0.001]
[1753104539930,2.64221734,3784.7,3784.6,0.001]
[1753104540135,3.08751734,3784.7,3784.6,0.001]
[1753104540730,3.12054505,3784.7,3784.6,0.001]
[1753104541837,2.67524505,3784.7,3784.6,0.001]
[1753104542990,4.236,3784.8,3784.6,0.001]
[1753104543394,6.87815153,3784.8,3784.6,0.001]
[1753104543726,0.132,3784.8,3784.6,0.001]
[1753104543900,4.236,3784.8,3784.6,0.001]
[1753104544108,6.9111904,3784.8,3784.6,0.001]
[1753104544317,4.236,3784.8,3784.6,0.001]
[1753104544928,0.132,3784.8,3784.6,0.001]
[1753104545129,4.103,3784.7,3784.6,0.001]
[1753104546699,6.74521734,3784.7,3784.6,0.001]
[1753104547203,4.103,3784.7,3784.6,0.001]
[1753104547424,0.16502684,3784.8,3784.6,0.3431]
[1753104547735,0.132,3784.8,3784.7,1.4585]
[1753104547935,4.103,3784.9,3784.7,1.4585]
[1753104548237,4.103,3784.9,3784.7,4.4585]
[1753104548528,4.103,3784.9,3784.7,1.1164]
[1753104549094,0.132,3785.0,3784.7,1.1164]
[1753104549300,4.51239875,3785.0,3784.6,0.001]
[1753104549603,2.64221734,3784.7,3784.6,0.001]
[1753104550144,3.08751734,3784.7,3784.6,0.001]
[1753104550352,3.12054505,3784.7,3784.6,0.001]
[1753104551207,2.67524505,3784.7,3784.6,0.001]
[1753104551663,6.77824505,3784.7,3784.6,0.001]
[1753104551869,6.74521734,3784.7,3784.6,0.001]
[1753104552064,6.77824505,3784.7,3784.6,0.001]
[1753104552942,6.74521734,3784.7,3784.6,0.001]
[1753104553842,7.19051734,3784.7,3784.6,0.001]
[1753104554589,1.1381,3785.2,3784.6,0.001]
[1753104554790,0.132,3784.8,3784.7,1.1346]
[1753104555088,4.234,3784.8,3784.7,1.1346]
[1753104555234,0.132,3784.8,3784.7,1.28237]
[1753104555440,0.132,3785.2,3784.8,3.0]
[1753104555652,1.124,3785.9,3784.9,0.3421]
[1753104555875,0.132,3785.5,3785.1,3.0]
[1753104556074,0.132,3785.5,3785.0,1.276047]
[1753104556335,0.132,3785.5,3785.0,1.618147]
[1753104556741,0.132,3785.5,3785.0,1.276047]
[1753104556979,0.132,3785.5,3785.0,1.1136]
[1753104558380,2.77370792,3785.5,3785.0,1.1136]
[1753104558540,0.132,3785.2,3785.0,1.1136]
[1753104561973,0.132,3785.2,3784.7,3.14777]
[1753104562155,0.132,3785.2,3784.7,4.24357]
[1753104563083,0.132,3785.2,3784.8,3.61612951]
[1753104563574,0.132,3785.5,3785.1,4.0958]
[1753104563761,0.132,3785.5,3785.1,3.73769136]
[1753104564080,0.132,3785.5,3785.2,0.3421]
[1753104564283,0.132,3785.5,3785.2,3.3421]
[1753104564585,0.132,3785.5,3785.2,4.32748576]
[1753104564882,0.132,3785.5,3785.2,3.96934729]
[1753104565248,0.002,3785.9,3785.4,3.0]
[1753104565459,0.002,3785.9,3785.6,3.0]
[1753104565771,0.002,3785.9,3785.6,3.13229233]
[1753104565772,0.134,3785.9,3785.6,3.13229233]
[1753104566578,0.134,3785.9,3785.7,1.0781]
[1753104570792,0.134,3785.9,3785.7,4.0781]
[1753104571101,0.002,3785.9,3785.8,6.11554962]
[1753104571244,0.002,3785.9,3785.8,10.21454962]
[1753104571448,0.002,3785.9,3785.8,11.71000028]
[1753104573109,0.002,3785.9,3785.8,19.94573154]
[1753104573392,0.002,3785.9,3785.8,24.04473154]
[1753104573593,0.002,3785.9,3785.8,19.94573154]
[1753104573793,0.002,3785.9,3785.8,24.04373154]
[1753104576977,0.002,3785.9,3785.8,19.94573154]
[1753104577285,0.002,3785.9,3785.8,24.04373154]
[1753104578378,0.002,3786.7,3786.6,2.64089156]
[1753104578582,0.002,3786.7,3786.6,11.14238072]
[1753104578798,0.002,3786.7,3786.6,12.16648072]
[1753104579499,0.002,3786.7,3786.6,12.36379495]
[1753104579697,0.002,3786.8,3786.7,7.30062182]
[1753104579854,0.002,3786.8,3786.7,7.64272182]
[1753104580051,0.002,3787.5,3787.4,7.27383373]
[1753104580274,0.002,3787.5,3787.4,11.50283373]
[1753104580806,0.002,3787.5,3787.4,11.84493373]
[1753104581895,0.002,3788.5,3788.4,2.63963678]
[1753104582213,0.002,3788.5,3788.4,11.56383678]
[1753104582506,0.002,3788.5,3788.4,14.05286569]
[1753104582818,0.002,3788.5,3788.4,7.31722891]
[1753104582966,0.002,3788.5,3788.4,13.50286569]
[1753104584608,0.002,3788.5,3788.4,14.39496569]
[1753104585570,0.002,3788.5,3788.4,14.69058893]
[1753104585773,0.002,3788.5,3788.4,10.29896569]
[1753104585988,0.002,3788.5,3788.4,14.39396569]
[1753104586516,0.002,3788.5,3788.4,14.05186569]
[1753104587325,0.002,3788.5,3788.4,14.70838893]
[1753104588280,0.002,3788.7,3788.6,2.63949743]
[1753104588483,0.02,3789.9,3789.2,3.18907948]
[1753104588721,0.02,3789.9,3789.2,22.40643398]
[1753104589021,0.02,3789.9,3789.2,22.53763398]
[1753104589536,0.02,3789.9,3789.2,23.0735153]
[1753104589736,0.02,3789.9,3789.2,25.37858011]
[1753104589889,0.02,3789.9,3789.2,25.03648011]
[1753104590310,0.02,3789.9,3789.2,24.72205687]
[1753104590710,0.4603,3789.6,3789.2,10.84524613]
[1753104590916,0.1512,3789.9,3789.2,9.09018132]
[1753104591114,0.02,3789.9,3789.2,9.09018132]
[1753104591791,0.02,3789.9,3789.2,9.22327907]
[1753104592536,0.02,3789.9,3789.2,9.2385]
[1753104593294,0.02,3789.9,3789.2,5.1455]
[1753104593502,0.4623,3789.3,3789.2,0.1312]
[1753104593797,0.4623,3789.3,3789.2,4.2232]
[1753104594220,0.4623,3789.3,3789.2,7.2232]
[1753104594735,0.4623,3789.3,3789.2,7.092]
[1753104594910,0.4623,3789.3,3789.2,3.0]
[1753104595438,3.73669727,3789.2,3788.7,0.1312]
[1753104595598,3.73669727,3789.2,3788.8,4.092]
[1753104595599,0.4603,3789.1,3788.8,4.092]
[1753104595795,0.4603,3789.0,3788.9,3.0]
[1753104595994,0.1332,3789.3,3788.9,4.092]
[1753104596195,0.5935,3789.3,3789.0,3.0]
[1753104596433,0.1332,3789.3,3789.2,3.0]
[1753104596621,0.1332,3789.3,3789.2,4.092]
[1753104597097,2.63911738,3789.2,3788.7,0.1312]
[1753104597302,0.4603,3789.1,3788.9,3.0]
[1753104597524,2.7722319,3789.3,3788.7,0.1312]
[1753104597525,2.7722319,3789.3,3789.1,3.0]
[1753104597716,2.7722319,3789.3,3789.2,7.092]
[1753104598098,3.2325319,3789.3,3789.2,7.092]
[1753104598334,4.3877319,3789.3,3789.2,3.0]
[1753104598534,1.7487,3789.3,3789.2,3.0]
[1753104598722,0.1332,3789.3,3789.2,3.0]
[1753104599330,0.5935,3789.3,3789.2,3.0]
[1753104599837,0.5935,3789.3,3789.2,7.092]
[1753104600038,0.002,3789.3,3789.2,7.092]
[1753104600424,3.10130984,3789.3,3789.2,3.0]
[1753104600743,2.64003461,3787.9,3787.6,0.001]
[1753104600914,2.63991552,3788.0,3787.9,0.1312]
[1753104601112,2.63991552,3788.0,3787.7,4.091]
[1753104601113,0.4603,3788.0,3787.7,4.091]
[1753104601334,0.4603,3787.9,3787.6,0.001]
[1753104601552,0.1312,3788.0,3787.8,3.0]
[1753104601703,1.6253,3788.4,3787.8,3.0]
[1753104601704,1.165,3788.4,3787.8,13.68673126]
[1753104601914,1.1698,3789.1,3788.0,3.0]
[1753104602232,1.1718,3790.1,3788.9,4.6391]
[1753104602417,0.002,3790.1,3789.2,1.6391]
[1753104602616,0.002,3790.1,3789.2,8.7311]
[1753104602818,0.002,3790.1,3789.2,4.6391]
[1753104603024,0.002,3790.1,3789.2,9.0732]
[1753104603218,0.002,3790.1,3789.2,9.63842]
[1753104603417,0.002,3790.1,3789.2,9.98052]
[1753104604827,0.002,3790.1,3789.2,5.54642]
[1753104605124,0.002,3790.1,3789.2,9.63742]
[1753104605326,1.1442,3789.7,3789.2,3.0]
[1753104605645,0.4603,3789.6,3789.2,7.091]
[1753104606228,1.6443,3789.9,3789.2,7.091]
[1753104606628,1.6443,3789.9,3789.2,7.641]
[1753104606811,0.02,3789.9,3789.2,7.641]
[1753104607249,0.02,3789.9,3789.2,8.7688]
[1753104607722,0.02,3789.9,3789.2,9.1109]
[1753104607933,0.02,3789.9,3789.2,11.09066313]
[1753104608359,0.02,3789.9,3789.2,17.87891613]
[1753104608544,0.02,3789.9,3789.2,13.61908213]
[1753104609217,0.02,3789.9,3789.2,34.85752513]
[1753104609418,0.02,3789.9,3789.2,24.58931613]
[1753104609621,0.02,3789.9,3789.2,22.00545913]
[1753104610335,0.02,3789.9,3789.2,26.38120113]
[1753104610736,0.02,3789.9,3789.2,22.96453113]
[1753104611258,0.02,3789.9,3789.2,24.95070413]
[1753104611437,0.02,3789.9,3789.2,20.86070413]
[1753104611637,0.02,3789.9,3789.2,22.13570413]
[1753104611826,0.02,3789.9,3789.2,21.86190413]
[1753104612030,0.02,3789.9,3789.2,11.22086313]
[1753104612234,0.02,3789.9,3789.2,11.55158913]
[1753104612559,0.02,3789.9,3789.2,14.31100113]
[1753104612735,0.02,3789.9,3789.2,10.87876313]
[1753104612925,0.02,3789.9,3789.2,7.13086313]
[1753104613123,0.02,3789.9,3789.2,10.87876313]
[1753104613438,0.02,3789.9,3789.2,7.13086313]
[1753104613636,0.02,3789.9,3789.2,6.23876313]
[1753104613850,0.02,3789.9,3789.2,10.32876313]
[1753104614051,0.02,3789.9,3789.2,6.58086313]
[1753104614253,0.02,3789.9,3789.2,11.22086313]
[1753104614457,0.02,3789.9,3789.2,6.78876313]
[1753104614682,0.02,3789.9,3789.2,11.22086313]
[1753104614892,0.02,3789.9,3789.2,17.85018413]
[1753104615249,0.02,3789.9,3789.2,12.96049113]
[1753104615454,0.02,3789.9,3789.2,11.44837713]
[1753104615642,0.02,3789.9,3789.2,17.00748413]
[1753104615988,0.02,3789.9,3789.2,11.22086313]
[1753104617673,0.02,3789.9,3789.2,11.21986313]
[1753104618273,0.02,3789.9,3789.2,10.87776313]
[1753104618797,0.02,3789.9,3789.2,11.21986313]
[1753104619548,0.02,3789.9,3789.2,7.13086313]
[1753104619775,0.02,3789.9,3789.2,11.21986313]
[1753104620166,0.02,3789.9,3789.5,0.55]
[1753104620376,0.02,3789.9,3789.8,15.40563126]
[1753104620680,0.02,3789.9,3789.8,19.62583126]
[1753104621083,0.02,3789.9,3789.8,44.39849326]
[1753104621282,0.068,3790.3,3790.1,0.55]
[1753104621581,0.068,3790.3,3790.2,13.189877]
[1753104621782,0.068,3790.3,3790.2,14.5363867]
[1753104621954,0.022,3790.9,3790.5,3.55]
[1753104622158,0.022,3790.9,3790.2,10.1656727]
[1753104622159,0.022,3790.9,3790.2,1.9860977]
[1753104622373,1.558,3790.8,3790.4,3.55]
[1753104622562,1.1094,3790.8,3790.4,3.55]
[1753104622881,0.4486,3790.7,3790.6,3.55]
[1753104623129,0.022,3790.9,3790.7,3.0]
[1753104623272,0.022,3790.9,3790.8,8.7018]
[1753104623856,0.022,3790.9,3790.8,28.471631]
[1753104624046,0.02,3791.9,3791.0,0.55]
[1753104624247,0.02,3791.9,3791.6,3.55]
[1753104624447,0.02,3791.9,3791.8,3.55]
[1753104625262,0.02,3791.9,3791.8,7.668327]
[1753104625578,0.02,3791.9,3791.8,10.5405]
[1753104625777,0.02,3791.9,3791.8,10.67483371]
[1753104626356,0.02,3791.9,3791.8,18.94713371]
[1753104626670,0.02,3791.9,3791.8,10.00086764]
[1753104626891,0.02,3791.9,3791.8,11.56426764]
[1753104627207,0.02,3791.9,3791.8,10.26553393]
[1753104627406,0.02,3791.9,3791.8,7.83779787]
[1753104627612,0.02,3791.9,3791.8,8.31226181]
[1753104627810,0.02,3791.9,3791.8,7.97016181]
[1753104628114,0.02,3791.9,3791.8,4.83779787]
[1753104628304,0.02,3791.9,3791.8,4.9720516]
[1753104628506,0.02,3791.9,3791.8,8.63500303]
[1753104628808,0.02,3791.9,3791.8,11.40814803]
[1753104629105,0.02,3791.9,3791.8,15.11157403]
[1753104629270,0.02,3791.9,3791.8,16.60667403]
[1753104629706,0.02,3791.9,3791.8,5.83211762]